fUSD/lending_fUSD_20240216
["ID","MTS","AMOUNT","RATE_DAILY","PERIOD"]
[314255204,1708119144431,-500.0,0.00052054,60]
[314255205,1708119144440,-2031.12,0.00052054,2]
[314255206,1708119144450,-500.0,0.00052054,60]
[314255207,1708119144460,-500.0,0.00052054,60]
[314255208,1708119144469,-608.56,0.00052054,60]
[314255209,1708119144479,-500.0,0.00052054,60]
[314255210,1708119144489,-500.0,0.00052054,60]
[314255211,1708119144499,-542.29,0.00052054,60]
[314255212,1708119144509,-500.0,0.00052054,60]
[314255213,1708119144518,-500.0,0.00052054,60]
[314255214,1708119144528,-310.21501306,0.00052054,60]
[314255215,1708119144537,-500.0,0.00052054,60]
[314255216,1708119144547,-500.0,0.00052054,60]
[314255217,1708119144559,-500.0,0.00052054,60]
[314255218,1708119144569,-500.0,0.00052054,60]
[314255219,1708119144579,-500.0,0.00052054,60]
[314255220,1708119144589,-662.34,0.00052054,60]
[314255221,1708119144599,-500.0,0.00052054,60]
[314255222,1708119144609,-500.0,0.00052054,60]
[314255223,1708119144619,-500.0,0.00052054,60]
[314255224,1708119144628,-500.0,0.00052054,60]
[314255225,1708119144638,-500.0,0.00052054,60]
[314255226,1708119144647,-725.97,0.00052054,60]
[314255227,1708119144657,-500.0,0.00052054,60]
[314255228,1708119144667,-500.0,0.00052054,60]
[314255229,1708119144676,-862.39,0.00052054,60]
[314255230,1708119144686,-500.0,0.00052054,60]
[314255231,1708119144696,-500.0,0.00052054,60]
[314255232,1708119144706,-500.0,0.00052054,60]
[314255233,1708119144715,-500.0,0.00052054,60]
[314255234,1708119144725,-500.0,0.00052054,60]
[314255235,1708119144735,-500.0,0.00052054,60]
[314255236,1708119144746,-500.0,0.00052054,60]
[314255237,1708119144755,-693.28,0.00052054,60]
[314255238,1708119144766,-500.0,0.00052054,60]
[314255239,1708119144775,-500.0,0.00052054,60]
[314255240,1708119144785,-703.48,0.00052054,60]
[314255241,1708119144794,-500.0,0.00052054,60]
[314255242,1708119144804,-566.58,0.00052054,60]
[314255243,1708119144813,-500.0,0.00052054,60]
[314255244,1708119144823,-500.0,0.00052054,60]
[314255245,1708119144832,-500.0,0.00052054,60]
[314255246,1708119144842,-500.0,0.00052054,60]
[314255247,1708119144851,-1032.17,0.00052054,60]
[314255248,1708119144860,-536.17,0.00052054,60]
[314255249,1708119144870,-500.0,0.00052054,60]
[314255250,1708119144879,-500.0,0.00052054,60]
[314255251,1708119144889,-986.8,0.00052054,60]
[314255252,1708119144898,-500.0,0.00052054,60]
[314255253,1708119144907,-500.0,0.00052054,60]
[314255254,1708119144917,-782.04,0.00052054,60]
[314255255,1708119144929,-539.44,0.00052054,60]
[314255256,1708119144938,-500.0,0.00052054,60]
[314255257,1708119144948,-500.0,0.00052054,60]
[314255258,1708119144958,-500.94,0.00052054,60]
[314255259,1708119144968,-500.0,0.00052054,60]
[314255260,1708119144977,-500.0,0.00052054,60]
[314255261,1708119144987,-500.0,0.00052054,60]
[314255262,1708119144998,-500.0,0.00052054,60]
[314255263,1708119145008,-708.38,0.00052054,60]
[314255264,1708119145019,-536.78949069,0.00052054,60]
[314255265,1708119145029,-500.0,0.00052054,60]
[314255266,1708119145038,-500.0,0.00052054,60]
[314255267,1708119145048,-515.61,0.00052054,60]
[314255268,1708119145058,-500.0,0.00052054,60]
[314255269,1708119145067,-578.51,0.00052054,60]
[314255270,1708119145076,-342.61198265,0.00052054,7]
[314255271,1708119145085,-535.65429394,0.00052054,60]
[314255272,1708119145096,-500.0,0.00052054,60]
[314255273,1708119145105,-500.0,0.00052054,60]
[314255274,1708119145115,-500.0,0.00052054,60]
[314255275,1708119145125,-500.0,0.00052054,60]
[314255276,1708119145134,-940.09,0.00052054,60]
[314255277,1708119145144,-388.81176994,0.00052054,60]
[314255278,1708119145153,-500.0,0.00052054,60]
[314255279,1708119145163,-500.0,0.00052054,60]
[314255280,1708119145173,-500.0,0.00052054,60]
[314255281,1708119145182,-239.957668,0.00052054,60]
[314255282,1708119145192,-816.62,0.00052054,60]
[314255283,1708119145201,-500.0,0.00052054,60]
[314255284,1708119145211,-500.0,0.00052054,60]
[314255285,1708119145221,-500.0,0.00052054,60]
[314255286,1708119145231,-500.0,0.00052054,60]
[314255287,1708119145241,-500.0,0.00052054,60]
[314255288,1708119145250,-500.0,0.00052054,60]
[314255289,1708119145260,-642.11,0.00052054,60]
[314255290,1708119145270,-500.0,0.00052054,60]
[314255291,1708119145280,-500.0,0.00052054,60]
[314255292,1708119145290,-500.0,0.00052054,60]
[314255293,1708119145300,-500.0,0.00052054,60]
[314255294,1708119145309,-500.0,0.00052054,60]
[314255295,1708119145318,-1167.88,0.00052054,60]
[314255296,1708119145328,-500.0,0.00052054,60]
[314255297,1708119145338,-500.0,0.00052054,60]
[314255298,1708119145347,-514.90641053,0.00052054,60]
[314255299,1708119145357,-851.65,0.00052054,60]
[314255300,1708119145367,-500.0,0.00052054,60]
[314255301,1708119145377,-500.0,0.00052054,60]
[314255302,1708119145386,-500.0,0.00052054,60]
[314255303,1708119145395,-500.0,0.00052054,60]
[314255304,1708119145405,-2216.52,0.00052054,60]
[314255305,1708119145415,-500.0,0.00052054,60]
[314255306,1708119145425,-500.0,0.00052054,60]
[314255307,1708119145435,-500.0,0.00052054,60]
[314255308,1708119145445,-500.0,0.00052054,60]
[314255309,1708119145456,-500.0,0.00052054,60]
[314255310,1708119145466,-694.71,0.00052054,60]
[314255311,1708119145475,-500.0,0.00052054,60]
[314255312,1708119145485,-500.0,0.00052054,60]
[314255313,1708119145498,-500.0,0.00052054,60]
[314255314,1708119145507,-2871.6,0.00052054,60]
[314255315,1708119145517,-500.0,0.00052054,60]
[314255316,1708119145526,-500.0,0.00052054,60]
[314255317,1708119145535,-500.0,0.00052054,60]
[314255318,1708119145545,-562.06,0.00052054,60]
[314255319,1708119145554,-500.0,0.00052054,60]
[314255320,1708119145563,-589.85,0.00052054,60]
[314255321,1708119145573,-1083.11,0.00052054,60]
[314255322,1708119145584,-500.0,0.00052054,60]
[314255323,1708119145594,-2574.8,0.00052054,60]
[314255324,1708119145604,-500.0,0.00052054,60]
[314255325,1708119145614,-150.0,0.00052054,60]
[314255326,1708119145623,-489.79523417,0.00052054,60]
[314255327,1708119145633,-500.0,0.00052054,60]
[314255328,1708119145642,-500.0,0.00052054,60]
[314255329,1708119145652,-500.0,0.00052054,60]
[314255330,1708119145662,-890.17,0.00052054,60]
[314255331,1708119145672,-1244.45,0.00052054,60]
[314255332,1708119145681,-500.0,0.00052054,60]
[314255333,1708119145691,-500.0,0.00052054,60]
[314255334,1708119145700,-500.0,0.00052054,60]
[314255335,1708119145710,-250.0,0.00052054,60]
[314255336,1708119145720,-588.9,0.00052054,60]
[314255337,1708119145729,-1983.03,0.00052054,60]
[314255338,1708119145738,-500.0,0.00052054,60]
[314255339,1708119145750,-500.0,0.00052054,60]
[314255340,1708119145760,-573.14100386,0.00052054,60]
[314255341,1708119145771,-500.0,0.00052054,60]
[314255342,1708119145781,-1068.84,0.00052054,60]
[314255343,1708119145791,-742.37,0.00052054,60]
[314255344,1708119145801,-803.55,0.00052054,60]
[314255345,1708119145811,-4400.67,0.00052054,60]
[314255346,1708119145820,-500.0,0.00052054,60]
[314255347,1708119145831,-821.93,0.00052054,60]
[314255348,1708119145840,-538.03,0.00052054,60]
[314255349,1708119145850,-500.0,0.00052054,60]
[314255350,1708119145860,-500.0,0.00052054,60]
[314255351,1708119145872,-500.0,0.00052054,60]
[314255352,1708119145881,-500.0,0.00052054,60]
[314255353,1708119145891,-3625.09,0.00052054,60]
[314255354,1708119145900,-500.0,0.00052054,60]
[314255355,1708119145909,-964.44,0.00052054,60]
[314255356,1708119145923,-1492.92,0.00052054,60]
[314255357,1708119145932,-2046.77,0.00052054,60]
[314255358,1708119145941,-500.0,0.00052054,60]
[314255359,1708119145951,-500.0,0.00052054,60]
[314255360,1708119145963,-802.5,0.00052054,60]
[314255361,1708119145972,-610.16,0.00052054,60]
[314255362,1708119145982,-500.0,0.00052054,60]
[314255363,1708119145991,-1066.34,0.00052054,60]
[314255364,1708119146004,-500.0,0.00052054,60]
[314255365,1708119146015,-797.01,0.00052054,60]
[314255366,1708119146025,-500.0,0.00052054,60]
[314255367,1708119146034,-500.0,0.00052054,60]
[314255368,1708119146043,-3199.37,0.00052054,60]
[314255369,1708119146053,-729.2,0.00052054,60]
[314255370,1708119146062,-500.0,0.00052054,60]
[314255371,1708119146072,-500.0,0.00052054,60]
[314255372,1708119146082,-24352.15,0.00052054,60]
[314255373,1708119146091,-1397.78,0.00052054,60]
[314255374,1708119146101,-500.0,0.00052054,60]
[314255375,1708119146193,-500.0,0.00052054,60]
[314255376,1708119146202,-500.0,0.00052054,60]
[314255377,1708119146212,-2225.09,0.00052054,60]
[314255378,1708119146221,-500.0,0.00052054,60]
[314255379,1708119146230,-500.0,0.00052054,60]
[314255380,1708119146239,-3059.93,0.00052054,60]
[314255381,1708119146251,-663.32,0.00052054,60]
[314255382,1708119146261,-559.03,0.00052054,60]
[314255383,1708119146270,-500.0,0.00052054,60]
[314255384,1708119146279,-500.0,0.00052054,60]
[314255385,1708119146289,-230.04203421,0.00052054,60]
[314255386,1708119146298,-500.0,0.00052054,60]
[314255387,1708119146307,-3189.76,0.00052054,60]
[314255388,1708119146316,-2572.92,0.00052054,60]
[314255389,1708119146325,-1075.21,0.00052054,60]
[314255390,1708119146334,-500.0,0.00052054,60]
[314255391,1708119146343,-500.0,0.00052054,60]
[314255392,1708119146353,-4525.95,0.00052054,60]
[314255393,1708119146362,-500.0,0.00052054,60]
[314255394,1708119146371,-648.82,0.00052054,60]
[314255395,1708119146380,-5354.43,0.00052054,60]
[314255396,1708119146389,-703.45,0.00052054,60]
[314255397,1708119146398,-1211.83,0.00052054,60]
[314255398,1708119146407,-871.55,0.00052054,60]
[314255399,1708119146415,-609.42,0.00052054,60]
[314255400,1708119146424,-1231.04,0.00052054,60]
[314255401,1708119146434,-737.52,0.00052054,60]
[314255402,1708119146443,-591.52,0.00052054,60]
[314255403,1708119146453,-719.76,0.00052054,60]
[314255404,1708119146462,-2765.99,0.00052054,60]
[314255405,1708119146472,-500.0,0.00052054,60]
[314255406,1708119146481,-1575.91,0.00052054,60]
[314255407,1708119146490,-500.0,0.00052054,60]
[314255408,1708119146500,-500.0,0.00052054,60]
[314255409,1708119146509,-868.38,0.00052054,60]
[314255410,1708119146518,-9546.8,0.00052054,60]
[314255411,1708119146529,-2411.87,0.00052054,60]
[314255412,1708119146539,-606.97,0.00052054,60]
[314255413,1708119146550,-500.0,0.00052054,60]
[314255414,1708119146560,-500.0,0.00052054,60]
[314255415,1708119146569,-570.56,0.00052054,60]
[314255416,1708119146581,-500.0,0.00052054,60]
[314255417,1708119146591,-1028.79,0.00052054,60]
[314255418,1708119146602,-1081.67,0.00052054,60]
[314255419,1708119146612,-500.0,0.00052054,60]
[314255420,1708119146621,-500.0,0.00052054,60]
[314255421,1708119146631,-500.0,0.00052054,60]
[314255422,1708119146642,-8340.13,0.00052054,60]
[314255423,1708119146652,-500.0,0.00052054,60]
[314255424,1708119146661,-500.0,0.00052054,60]
[314255425,1708119146672,-6395.6,0.00052054,14]
[314255426,1708119146683,-500.0,0.00052054,60]
[314255427,1708119146693,-500.0,0.00052054,60]
[314255428,1708119146704,-500.0,0.00052054,60]
[314255429,1708119146713,-500.0,0.00052054,60]
[314255430,1708119146722,-500.0,0.00052054,60]
[314255431,1708119146731,-2287.27,0.00052054,60]
[314255432,1708119146741,-500.0,0.00052054,60]
[314255433,1708119146751,-542.74,0.00052054,60]
[314255434,1708119146761,-1517.81,0.00052054,60]
[314255435,1708119146770,-500.0,0.00052054,60]
[314255436,1708119146779,-520.3,0.00052054,60]
[314255437,1708119146788,-7477.21,0.00052054,60]
[314255438,1708119146798,-500.0,0.00052054,60]
[314255439,1708119146809,-714.64,0.00052054,60]
[314255440,1708119146819,-610.25,0.00052054,60]
[314255441,1708119146829,-630.12,0.00052054,60]
[314255442,1708119146839,-500.0,0.00052054,60]
[314255443,1708119146848,-500.0,0.00052054,60]
[314255444,1708119146858,-722.94,0.00052054,60]
[314255445,1708119146868,-910.24,0.00052054,60]
[314255446,1708119146878,-3306.89,0.00052054,60]
[314255447,1708119146889,-500.0,0.00052054,60]
[314255448,1708119146899,-544.82,0.00052054,60]
[314255449,1708119146909,-5810.7,0.00052054,60]
[314255450,1708119146918,-2333.25,0.00052054,60]
[314255451,1708119146930,-1821.43,0.00052054,60]
[314255452,1708119146941,-500.0,0.00052054,60]
[314255453,1708119146951,-500.0,0.00052054,60]
[314255454,1708119146960,-1107.39,0.00052054,60]
[314255455,1708119146972,-500.0,0.00052054,60]
[314255456,1708119146982,-3684.25,0.00052054,60]
[314255457,1708119146992,-583.02,0.00052054,60]
[314255458,1708119147003,-500.0,0.00052054,60]
[314255459,1708119147012,-500.0,0.00052054,60]
[314255460,1708119147020,-673.09,0.00052054,60]
[314255461,1708119147030,-500.0,0.00052054,60]
[314255462,1708119147041,-500.0,0.00052054,60]
[314255463,1708119147050,-500.0,0.00052054,60]
[314255464,1708119147060,-530.67,0.00052054,60]
[314255465,1708119147070,-868.96,0.00052054,60]
[314255466,1708119147080,-500.0,0.00052054,60]
[314255467,1708119147090,-500.0,0.00052054,60]
[314255468,1708119147100,-688.48,0.00052054,60]
[314255469,1708119147109,-2624.63,0.00052054,60]
[314255470,1708119147119,-500.0,0.00052054,60]
[314255471,1708119147128,-842.25,0.00052054,60]
[314255472,1708119147137,-500.0,0.00052054,60]
[314255473,1708119147147,-905.88,0.00052054,60]
[314255474,1708119147156,-500.0,0.00052054,60]
[314255475,1708119147166,-500.0,0.00052054,60]
[314255476,1708119147175,-1344.54,0.00052054,60]
[314255477,1708119147185,-500.0,0.00052054,60]
[314255478,1708119147195,-842.36,0.00052054,2]
[314255479,1708119147204,-2942.14,0.00052054,60]
[314255480,1708119147214,-3000.0,0.00052054,120]
[314255481,1708119147223,-505.82,0.00052054,60]
[314255482,1708119147232,-2570.64,0.00052054,60]
[314255483,1708119147242,-2688.02,0.00052054,60]
[314255484,1708119147254,-500.0,0.00052054,60]
[314255485,1708119147264,-2260.09,0.00052054,60]
[314255486,1708119147275,-500.0,0.00052054,60]
[314255487,1708119147285,-500.0,0.00052054,60]
[314255488,1708119147295,-716.26,0.00052054,60]
[314255489,1708119147305,-924.33,0.00052054,60]
[314255490,1708119147314,-500.0,0.00052054,60]
[314255491,1708119147324,-657.39,0.00052054,60]
[314255492,1708119147333,-2023.51,0.00052054,60]
[314255493,1708119147343,-1625.46,0.00052054,60]
[314255494,1708119147352,-506.3,0.00052054,60]
[314255495,1708119147362,-500.0,0.00052054,60]
[314255496,1708119147371,-953.19,0.00052054,60]
[314255497,1708119147381,-500.0,0.00052054,60]
[314255498,1708119147391,-680.83,0.00052054,60]
[314255499,1708119147402,-1719.81,0.00052054,60]
[314255500,1708119147411,-586.01,0.00052054,60]
[314255501,1708119147421,-582.82,0.00052054,60]
[314255502,1708119147430,-562.1,0.00052054,60]
[314255503,1708119147441,-4202.04,0.00052054,60]
[314255504,1708119147453,-659.84,0.00052054,60]
[314255505,1708119147463,-7068.33,0.00052054,60]
[314255506,1708119147472,-500.0,0.00052054,60]
[314255507,1708119147482,-500.0,0.00052054,60]
[314255508,1708119147491,-500.0,0.00052054,60]
[314255509,1708119147502,-2643.96,0.00052054,60]
[314255510,1708119147511,-500.0,0.00052054,60]
[314255511,1708119147520,-600.0,0.00052054,60]
[314255512,1708119147529,-1183.13,0.00052054,60]
[314255513,1708119147538,-500.0,0.00052054,60]
[314255514,1708119147547,-1949.14,0.00052054,60]
[314255515,1708119147557,-566.21,0.00052054,60]
[314255516,1708119147566,-1927.89,0.00052054,60]
[314255517,1708119147577,-500.0,0.00052054,60]
[314255518,1708119147588,-699.96,0.00052054,60]
[314255519,1708119147597,-500.0,0.00052054,60]
[314255520,1708119147607,-3348.01,0.00052054,60]
[314255521,1708119147616,-1200.81,0.00052054,60]
[314255522,1708119147625,-500.0,0.00052054,60]
[314255523,1708119147635,-1872.95,0.00052054,60]
[314255524,1708119147643,-529.58,0.00052054,60]
[314255525,1708119147653,-716.71,0.00052054,60]
[314255526,1708119147662,-693.17,0.00052054,60]
[314255527,1708119147672,-500.0,0.00052054,60]
[314255528,1708119147681,-1099.89,0.00052054,60]
[314255529,1708119147690,-500.0,0.00052054,60]
[314255530,1708119147699,-500.0,0.00052054,60]
[314255531,1708119147709,-552.07,0.00052054,60]
[314255532,1708119147717,-500.0,0.00052054,60]
[314255533,1708119147727,-1791.39,0.00052054,60]
[314255534,1708119147736,-500.0,0.00052054,60]
[314255535,1708119147745,-573.51,0.00052054,60]
[314255536,1708119147755,-777.88,0.00052054,60]
[314255537,1708119147763,-1055.53,0.00052054,60]
[314255538,1708119147773,-500.0,0.00052054,60]
[314255539,1708119147782,-722.67,0.00052054,60]
[314255540,1708119147794,-1887.23,0.00052054,60]
[314255541,1708119147803,-500.0,0.00052054,60]
[314255542,1708119147813,-500.0,0.00052054,60]
[314255543,1708119147823,-674.89,0.00052054,60]
[314255544,1708119147833,-2198.11,0.00052054,60]
[314255545,1708119147842,-8115.72,0.00052054,60]
[314255546,1708119147851,-701.75,0.00052054,60]
[314255547,1708119147860,-500.0,0.00052054,60]
[314255548,1708119147869,-779.02,0.00052054,60]
[314255549,1708119147879,-500.0,0.00052054,60]
[314255550,1708119147889,-1002.39,0.00052054,60]
[314255551,1708119147898,-500.0,0.00052054,60]
[314255552,1708119147907,-1272.04,0.00052054,60]
[314255553,1708119147918,-1115.22,0.00052054,60]
[314255554,1708119147931,-625.36135695,0.00052054,60]
[314255555,1708119147940,-505.42,0.00052054,60]
[314255556,1708119147950,-3301.31,0.00052054,60]
[314255557,1708119147960,-626.52,0.00052054,60]
[314255558,1708119147970,-500.0,0.00052054,60]
[314255559,1708119147979,-500.0,0.00052054,60]
[314255560,1708119147988,-500.0,0.00052054,60]
[314255561,1708119147998,-500.0,0.00052054,60]
[314255562,1708119148008,-1972.92,0.00052054,60]
[314255563,1708119148018,-500.0,0.00052054,60]
[314255564,1708119148027,-991.91,0.00052054,60]
[314255565,1708119148037,-914.46,0.00052054,60]
[314255566,1708119148047,-500.0,0.00052054,60]
[314255567,1708119148057,-536.93,0.00052054,60]
[314255568,1708119148066,-500.0,0.00052054,60]
[314255569,1708119148076,-500.0,0.00052054,60]
[314255570,1708119148086,-500.0,0.00052054,60]
[314255571,1708119148095,-6496.83,0.00052054,60]
[314255572,1708119148105,-500.0,0.00052055,120]
[314255573,1708119148114,-1891.07391221,0.000521,2]
[314255574,1708119148124,-1991.55821712,0.000521,2]
[314255575,1708119148134,-446.86408125,0.00052129,30]
[314255576,1708119148144,-182.46208837,0.00052129,30]
[314255577,1708119148154,-288.21600538,0.00052129,30]
[314255578,1708119148164,-332.83372129,0.00052129,30]
[314255579,1708119148173,-325.64438562,0.00052129,30]
[314255580,1708119148183,-558.22248689,0.0005214,60]
[314255581,1708119148193,-500.0,0.000522,120]
[314255582,1708119148202,-152.42586658,0.0005222,2]
[314255583,1708119148211,-152.72220558,0.00052263,53]
[314255584,1708119148221,-312.24,0.0005228,2]
[314255585,1708119148231,-155.0,0.00052303,120]
[314255586,1708119148240,-1080.08996213,0.00052328,2]
[314255587,1708119148250,-1533.59335103,0.00052328,2]
[314255588,1708119148260,-500.0,0.00052328,60]
[314255589,1708119148270,-500.0,0.00052328,60]
[314255590,1708119148280,-153.16375691,0.00052328,60]
[314255591,1708119148290,-500.0,0.00052328,60]
[314255592,1708119148300,-500.0,0.00052328,60]
[314255593,1708119148309,-500.0,0.00052328,60]
[314255594,1708119148319,-500.0,0.00052328,60]
[314255595,1708119148328,-500.0,0.00052328,60]
[314255596,1708119148337,-500.0,0.00052328,60]
[314255597,1708119148347,-500.0,0.00052328,60]
[314255598,1708119148356,-500.0,0.00052328,60]
[314255599,1708119148365,-500.0,0.00052328,60]
[314255600,1708119148374,-500.0,0.00052328,60]
[314255601,1708119148383,-500.0,0.00052328,60]
[314255602,1708119148392,-500.0,0.00052328,60]
[314255603,1708119148402,-500.0,0.00052328,60]
[314255604,1708119148411,-500.0,0.00052328,60]
[314255605,1708119148421,-500.0,0.00052328,60]
[314255606,1708119148430,-500.0,0.00052328,60]
[314255607,1708119148440,-500.0,0.00052328,60]
[314255608,1708119148449,-500.0,0.00052328,60]
[314255609,1708119148459,-573.94138223,0.00052328,60]
[314255610,1708119148468,-500.0,0.00052328,60]
[314255611,1708119148477,-500.0,0.00052328,60]
[314255612,1708119148488,-500.0,0.00052328,60]
[314255613,1708119148497,-500.0,0.00052328,60]
[314255614,1708119148507,-462.17961405,0.00052328,60]
[314255615,1708119148518,-500.0,0.00052328,60]
[314255616,1708119148529,-500.0,0.00052328,60]
[314255617,1708119148539,-500.0,0.00052328,60]
[314255618,1708119148549,-500.0,0.00052328,60]
[314255619,1708119148559,-378.0,0.00052328,60]
[314255620,1708119148569,-500.0,0.00052328,60]
[314255621,1708119148582,-500.0,0.00052328,60]
[314255622,1708119148592,-1000.0,0.00052328,120]
[314255623,1708119148603,-500.0,0.00052328,60]
[314255624,1708119148614,-500.0,0.00052328,60]
[314255625,1708119148625,-500.0,0.00052328,60]
[314255626,1708119148635,-664.54,0.00052328,30]
[314255627,1708119148645,-500.0,0.00052328,60]
[314255628,1708119148655,-500.0,0.00052328,60]
[314255629,1708119148665,-500.0,0.00052328,60]
[314255630,1708119148674,-568.05,0.00052328,2]
[314255631,1708119148685,-500.0,0.00052328,60]
[314255632,1708119148698,-500.0,0.00052328,60]
[314255633,1708119148710,-500.0,0.00052328,60]
[314255634,1708119148721,-500.0,0.00052328,60]
[314255635,1708119148731,-500.0,0.00052328,60]
[314255636,1708119148741,-500.0,0.00052328,60]
[314255637,1708119148752,-500.0,0.00052328,60]
[314255638,1708119148761,-500.0,0.00052328,60]
[314255639,1708119148770,-500.0,0.00052328,60]
[314255640,1708119148780,-500.0,0.00052328,60]
[314255641,1708119148789,-500.0,0.00052328,60]
[314255642,1708119148799,-376.21756239,0.00052328,60]
[314255643,1708119148810,-500.0,0.00052328,60]
[314255644,1708119148819,-500.0,0.00052328,60]
[314255645,1708119148830,-500.0,0.00052328,60]
[314255646,1708119148841,-456.97,0.00052328,60]
[314255647,1708119148850,-500.0,0.00052328,60]
[314255648,1708119148861,-500.0,0.00052328,60]
[314255649,1708119148871,-500.0,0.00052328,60]
[314255650,1708119148883,-500.0,0.00052328,60]
[314255651,1708119148894,-500.0,0.00052328,60]
[314255652,1708119148903,-500.0,0.00052328,60]
[314255653,1708119148913,-500.0,0.00052328,60]
[314255654,1708119148929,-500.0,0.00052328,60]
[314255655,1708119148939,-500.0,0.00052328,60]
[314255656,1708119148951,-631.37,0.00052328,60]
[314255657,1708119148961,-500.0,0.00052328,60]
[314255658,1708119148971,-500.0,0.00052328,60]
[314255659,1708119148980,-500.0,0.00052328,60]
[314255660,1708119148990,-500.0,0.00052328,60]
[314255661,1708119149002,-500.0,0.00052328,60]
[314255662,1708119149012,-500.0,0.00052328,60]
[314255663,1708119149022,-521.00867001,0.00052328,60]
[314255664,1708119149031,-500.0,0.00052328,60]
[314255665,1708119149041,-500.0,0.00052328,60]
[314255666,1708119149050,-500.0,0.00052328,60]
[314255667,1708119149060,-549.14,0.00052328,60]
[314255668,1708119149069,-500.0,0.00052328,60]
[314255669,1708119149079,-500.0,0.00052328,60]
[314255670,1708119149089,-500.0,0.00052328,60]
[314255671,1708119149099,-500.0,0.00052328,60]
[314255672,1708119149108,-953.91,0.00052328,60]
[314255673,1708119149119,-713.03,0.00052328,60]
[314255674,1708119149128,-500.0,0.00052328,60]
[314255675,1708119149138,-639.89,0.00052328,60]
[314255676,1708119149147,-500.0,0.00052328,60]
[314255677,1708119149156,-510.16,0.00052328,60]
[314255678,1708119149166,-500.0,0.00052328,60]
[314255679,1708119149175,-500.0,0.00052328,60]
[314255680,1708119149185,-580.88,0.00052328,60]
[314255681,1708119149195,-500.0,0.00052328,60]
[314255682,1708119149204,-500.0,0.00052328,60]
[314255683,1708119149214,-500.0,0.00052328,60]
[314255684,1708119149223,-555.94,0.00052328,60]
[314255685,1708119149233,-572.13,0.00052328,60]
[314255686,1708119149242,-570.46,0.00052328,60]
[314255687,1708119149253,-551.75,0.00052328,60]
[314255688,1708119149263,-500.0,0.00052328,60]
[314255689,1708119149272,-500.0,0.00052328,60]
[314255690,1708119149282,-500.0,0.00052328,60]
[314255691,1708119149291,-500.0,0.00052328,60]
[314255692,1708119149300,-616.49,0.00052328,60]
[314255693,1708119149310,-329.7065207,0.00052328,60]
[314255694,1708119149319,-500.0,0.00052328,60]
[314255695,1708119149330,-500.0,0.00052328,60]
[314255696,1708119149339,-569.39,0.00052328,60]
[314255697,1708119149349,-500.0,0.00052328,60]
[314255698,1708119149359,-614.71,0.00052328,60]
[314255699,1708119149369,-500.0,0.00052328,60]
[314255700,1708119149379,-500.0,0.00052328,60]
[314255701,1708119149389,-500.0,0.00052328,60]
[314255702,1708119149398,-2236.49,0.00052328,60]
[314255703,1708119149407,-869.27,0.00052328,60]